Cogmind - Beta 11 --- EXPLORER MODE // 2022.03.22 @ 20:24:09 Player: Owlsley Result: Destroyed by EQ-074 with Graviton Cannon Performance ------------- Evolutions (9) 4500 Regions Visited (31) 6200 Robots Destroyed (392) 1960 Value Destroyed (23208) 23208 Prototype IDs (59) 1180 Alien Tech Used (7) 1400 Bonus (16857) 16857 TOTAL SCORE: 55305 Bonus ------- High Alert Combat Kills 342 Follower Combat Kills 2063 Network Hubs Disabled 400 Met Data Miner 300 Met Warlord at Base 500 MAIN.C Attacked Warlord 500 Warlord Defense Kill 618 Built Enhanced Grunts 300 A7 Reached Mainframe 300 Met R17 at Cetus 500 Met R17 at Research 2000 Scanned by Researcher 500 Met MAIN.C 5000 Destroyed MAIN.C Shell 5000 Friendly Fire -1466 Cogmind --------- Core Integrity 0/1600 Matter 203/300 Energy 99/100 System Corruption 0% Temperature Cool (0) Movement Core (50) Location -1/Command Parts ------- > --- POWER (2) -------- (None) > --- PROPULSION (4) --- (None) > --- UTILITY (16) ----- Experimental Optical Array Core Analyzer Improved Armor Integrity Analyzer Graphene Brace Improved Corruption Screen > --- WEAPON (4) ------- (None) > --- INVENTORY (5) ---- Core Cannon Sigix Broadsword Peak State ------------ > --- POWER ------------ Zero-point Reactor Zero-point Reactor > --- PROPULSION ------- Centrium Heavy Treads Centrium Heavy Treads > --- UTILITY ---------- Advanced Cooling System High-capacity Storage Unit Energy Well Advanced Targeting Computer Experimental Target Analyzer Core Analyzer Improved Armor Integrity Analyzer Advanced Actuator Array Centrium Heavy Armor Plating Heavy Regenerative Plating Graphene Brace Improved Corruption Screen Improved Corruption Screen Experimental System Purifier > --- WEAPON ----------- Heavy Quantum Rifle Null Cannon Sigix Broadsword > --- INVENTORY -------- Light Particle Reactor Light Particle Reactor Matter Drive Advanced Heavy Treads Biometal Heavy Treads Matter Compressor Experimental Force Field Enhanced Quantum Rifle Compact HERF Cannon Enhanced Nova Cannon Core Cannon Hardcell Cannon Core Stripper Sigix Broadsword [Rating: 236] Favorites ----------- Power Quantum Reactor Engine Cooled Ion Engine Power Core Neutrino Core Reactor Quantum Reactor Propulsion Light Treads Treads Light Treads Leg Aluminum Leg Utility High-capacity Storage Unit Device Graphene Brace Storage High-capacity Storage Unit Processor Enhanced Optical Array Hackware Improved Hacking Suite Protection Centrium Medium Armor Plating Weapon Advanced KE Penetrator Energy Gun Advanced Variable Charge Gun Energy Cannon Compact HERF Cannon Ballistic Gun Advanced KE Penetrator Ballistic Cannon Mini Assault Cannon Launcher Scatter Rocket Array Impact Weapon Core Stripper Slashing Weapon Centrium Greatsword Piercing Weapon Lance Build | -11 -10 -10 -9 -9 -9 -8 -8 -8 -7 -7 -7 -7 -6 -6 -5 -5 -5 -5 -5 -4 -4 -4 -4 -3 -3 -3 -2 -2 -2 -1 -1 ------- Run | Scr Mat Min Mat Min Exi Min Mat Sto Fac Low Low Dat Pro Fac Fac Ext Cet Arc Hub Fac Upp Upp War Pro Res Qua Res Tes Sec Acc Com Slots Evolved 19 | . 1 . 2 . . . 2 . 2 . . . . 2 2 . . . . 2 . . . . 2 . 2 . . 2 . Power 1 | . . . . . . . . . . . . . . . . . . . . . . . . . . . 1 . . . . Propulsion 2 | . . . . . . . 1 . 1 . . . . . . . . . . . . . . . . . . . . . . Utility 14 | . 1 . 2 . . . 1 . 1 . . . . 2 1 . . . . 2 . . . . 1 . 1 . . 2 . Weapon 2 | . . . . . . . . . . . . . . . 1 . . . . . . . . . 1 . . . . . . Parts Attached 331 | 2 10 . 13 2 1 1 20 34 2 6 2 . 1 13 8 12 8 . 14 9 . 3 7 4 6 11 6 12 14 45 65 Power 31 | . 1 . 1 . . . 1 . . 1 1 . . . . . 2 . . 1 . . . 2 . 1 1 . 1 9 9 Engine 4 | . 1 . 1 . . . 1 . . 1 . . . . . . . . . . . . . . . . . . . . . Core 1 | . . . . . . . . . . . 1 . . . . . . . . . . . . . . . . . . . . Reactor 26 | . . . . . . . . . . . . . . . . . 2 . . 1 . . . 2 . 1 1 . 1 9 9 Propulsion 50 | 2 2 . 3 . 1 . 4 9 1 3 . . . 3 . 5 2 . 3 . . . . . 2 . . . 3 3 4 Treads 50 | 2 2 . 3 . 1 . 4 9 1 3 . . . 3 . 5 2 . 3 . . . . . 2 . . . 3 3 4 Leg . | . . . . . . . . . . . . . . . . . . . . . . . . . . . . . . . . Wheel . | . . . . . . . . . . . . . . . . . . . . . . . . . . . . . . . . Hover . | . . . . . . . . . . . . . . . . . . . . . . . . . . . . . . . . Flight . | . . . . . . . . . . . . . . . . . . . . . . . . . . . . . . . . Utility 132 | . 4 . 6 2 . . 5 8 1 2 1 . 1 8 5 4 1 . 3 8 . 1 7 1 3 4 2 4 3 24 24 Device 63 | . . . . . . . . 3 . 1 . . . 5 3 1 . . 2 4 . 1 6 . 3 3 1 3 2 17 8 Storage 7 | . 1 . 1 . . . 1 1 . . . . . . . . . . . . . . . . . . . . . 2 1 Processor 21 | . 1 . 3 1 . . . . 1 . . . . 1 1 1 . . . 2 . . 1 . . . . . . 3 6 Hackware 2 | . . . . . . . . . . . . . . . . 1 . . . 1 . . . . . . . . . . . Protection 39 | . 2 . 2 1 . . 4 4 . 1 1 . 1 2 1 1 1 . 1 1 . . . 1 . 1 1 1 1 2 9 Artifact . | . . . . . . . . . . . . . . . . . . . . . . . . . . . . . . . . Weapon 118 | . 3 . 3 . . 1 10 17 . . . . . 2 3 3 3 . 8 . . 2 . 1 1 6 3 8 7 9 28 Energy Gun 31 | . . . . . . . 4 . . . . . . . . 1 . . 1 . . . . 1 . 1 1 5 5 5 7 Energy Cannon 11 | . . . . . . . . . . . . . . . . 1 1 . . . . . . . . . . . . 1 8 Ballistic Gun 47 | . 3 . 3 . . 1 6 10 . . . . . 1 3 1 1 . 6 . . 1 . . 1 3 2 2 2 1 . Ballistic Cannon 7 | . . . . . . . . . . . . . . 1 . . . . . . . . . . . . . . . . 6 Launcher 3 | . . . . . . . . 2 . . . . . . . . 1 . . . . . . . . . . . . . . Special Weapon . | . . . . . . . . . . . . . . . . . . . . . . . . . . . . . . . . Impact Weapon 3 | . . . . . . . . . . . . . . . . . . . . . . . . . . . . . . . 3 Slashing Weapon 13 | . . . . . . . . 5 . . . . . . . . . . . . . . . . . 1 . 1 . 2 4 Piercing Weapon 3 | . . . . . . . . . . . . . . . . . . . 1 . . 1 . . . 1 . . . . . Special Melee Weapon . | . . . . . . . . . . . . . . . . . . . . . . . . . . . . . . . . Unidentified Prototypes 39 | . . . 1 . . . . 3 . . . . . 1 . . 3 . 2 . . . 4 . . 3 1 2 2 5 12 Corrupted Parts 5 | . . . . . . . . . . . . . . . . . . . 5 . . . . . . . . . . . . System Corruption 10 | . . . . . . . . . . . . . . . . . . . 10 . . . . . . . . . . . . Parts Lost 60 | . . . . . . . . 2 . 1 . . . 1 . 2 . . 2 . . . 1 . . 1 1 . . 20 29 Power 10 | . . . . . . . . . . 1 . . . . . . . . . . . . . . . . . . . 4 5 Propulsion 8 | . . . . . . . . . . . . . . 1 . 2 . . . . . . . . . . . . . 1 4 Utility 31 | . . . . . . . . 2 . . . . . . . . . . . . . . 1 . . . . . . 13 15 Weapon 11 | . . . . . . . . . . . . . . . . . . . 2 . . . . . . 1 1 . . 2 5 Highest Loss Streak 18 | . . . . . . . . 1 . 1 . . . 1 . 1 . . 1 . . . 1 . . 1 1 . . 9 18 To Critical Strikes . | . . . . . . . . . . . . . . . . . . . . . . . . . . . . . . . . Average Slot Usage (%) 92 | . 99 100 100 100 100 100 99 96 100 99 100 100 100 98 99 99 89 88 88 89 90 90 89 90 89 89 91 89 85 83 78 Engine 3 | . 11 12 10 10 10 10 8 8 7 7 2 . . . . . . . . . . . . . . . . . . . . Reactor 3 | . . . . . . . . . . . . . . . . . 4 5 5 5 5 5 5 5 4 3 8 8 8 6 6 Treads 15 | . 25 25 20 20 20 20 24 25 28 28 28 28 28 23 22 21 12 11 11 10 10 10 10 10 9 9 8 8 8 6 6 Device 14 | . . . . . . . . 10 14 13 14 14 14 18 19 20 16 16 16 16 15 17 19 20 22 21 23 25 28 22 17 Storage 6 | . 12 12 10 10 10 10 8 8 7 7 7 7 7 6 5 5 5 5 5 5 5 5 5 5 4 4 4 4 4 5 7 Processor 20 | . 10 12 20 26 30 30 25 16 21 21 21 21 21 18 22 22 22 22 22 24 25 22 20 20 18 18 16 16 16 19 18 Hackware 2 | . . . . . . . . . . . . . . . . 1 5 5 5 9 10 10 10 10 9 6 4 3 . . . Protection 8 | . 13 12 20 13 10 10 15 8 7 7 7 7 7 12 7 5 5 5 5 4 5 5 5 5 4 6 8 7 4 5 6 Energy Gun 2 | . 5 . . . . . . . . . . . . . . 2 5 5 4 5 5 5 5 5 4 2 4 3 4 5 3 Ballistic Gun 11 | . 19 25 20 20 20 20 15 15 14 14 14 14 14 11 11 7 5 5 8 10 10 9 10 10 12 14 12 9 9 4 . Naked Turns . | . . . . . . . . . . . . . . . . . . . . . . . . . . . . . . . . Heaviest Build 184 | 19 32 32 40 40 39 40 51 71 71 71 72 72 72 77 80 82 89 89 89 89 87 92 92 91 98 104 131 137 140 163 184 Greatest Support 160 | 40 40 40 40 40 40 40 60 67 86 86 86 86 86 87 87 95 160 160 160 160 160 160 160 160 160 150 150 150 160 160 160 Greatest Overweight (x) 1 | . . . . . . . . 1 . 1 . . . 1 . 1 . . 1 . . . . . . . . . 1 1 1 Average Overweight (x) . | . . . . . . . . . . . . . . . . . . . . . . . . . . . . . . . . Largest Inventory Capacity 20 | 10 15 15 15 15 15 15 15 20 20 20 20 20 20 20 20 20 20 20 20 20 20 20 20 20 20 20 20 20 20 20 20 Average Capacity 18 | 10 14 15 15 15 15 15 15 15 20 20 20 20 20 20 20 20 20 20 20 20 20 20 20 20 20 20 20 20 20 20 19 Most Carried 20 | 7 15 15 15 15 15 15 15 20 19 20 20 20 20 20 20 20 20 20 20 20 20 20 20 20 20 20 20 20 20 20 20 Average Carried 18 | 7 13 15 14 15 14 15 14 15 18 18 20 20 19 19 18 19 19 19 19 19 20 19 19 19 18 19 19 19 19 19 18 Final Capacity 20 | 10 15 15 15 15 15 15 15 20 20 20 20 20 20 20 20 20 20 20 20 20 20 20 20 20 20 20 20 20 20 20 5 Final Carried 20 | 7 15 15 15 15 15 15 15 20 18 20 20 20 20 20 20 20 20 20 20 20 20 20 20 20 20 20 19 20 19 18 4 Class Distribution -------------------- 42% | Hacker-Mutant 24% | Hacker-Gunner 12% | Scavenger-Tank 9% | Scavenger-Mutant 4% | Hacker-Tank 4% | Scavenger-Gunner Dominant Class ---------------- Hacker-Mutant | -10/Materials Hacker-Mutant | -10/Mines Hacker-Mutant | -9/Materials Hacker-Mutant | -9/Mines Hacker-Mutant | -9/Exiles Hacker-Mutant | -8/Mines Hacker-Mutant | -8/Materials Hacker-Mutant | -8/Storage Hacker-Mutant | -7/Factory Hacker-Mutant | -7/Lower Caves Hacker-Mutant | -7/Lower Caves Hacker-Mutant | -7/Data Miner Hacker-Mutant | -6/Proximity Caves Hacker-Mutant | -6/Factory Hacker-Gunner | -5/Factory Hacker-Gunner | -5/Extension Hacker-Gunner | -5/Cetus Hacker-Gunner | -5/Archives Hacker-Gunner | -5/Hub_04(d) Hacker-Gunner | -4/Factory Hacker-Gunner | -4/Upper Caves Hacker-Gunner | -4/Upper Caves Hacker-Gunner | -4/Warlord Hacker-Tank | -3/Proximity Caves Hacker-Tank | -3/Research Scavenger-Tank | -3/Quarantine Scavenger-Tank | -2/Research Scavenger-Tank | -2/Testing Scavenger-Tank | -2/Section 7 Scavenger-Gunner | -1/Access Scavenger-Mutant | -1/Command Resources | -11 -10 -10 -9 -9 -9 -8 -8 -8 -7 -7 -7 -7 -6 -6 -5 -5 -5 -5 -5 -4 -4 -4 -4 -3 -3 -3 -2 -2 -2 -1 -1 ----------- Run | Scr Mat Min Mat Min Exi Min Mat Sto Fac Low Low Dat Pro Fac Fac Ext Cet Arc Hub Fac Upp Upp War Pro Res Qua Res Tes Sec Acc Com Matter Collected 10299 | 146 197 . 444 134 10 140 790 1130 . 403 276 . 34 100 368 627 196 40 315 437 . 94 174 270 136 540 211 388 703 1152 844 Remotely . | . . . . . . . . . . . . . . . . . . . . . . . . . . . . . . . . Salvage Created 24345 | . 345 . 812 239 . 276 1655 2003 13 450 486 . 115 270 236 684 212 191 1053 658 . 244 331 1326 238 851 366 1298 2591 3804 3598 Parts 1158 | . 22 . 52 10 . 12 93 105 4 17 20 . 4 9 17 32 7 9 44 37 . 8 24 69 18 55 18 64 109 194 105 Haulers Intercepted 23 | . 2 . 5 . . . 4 5 . . . . . 1 . . . . 1 . . . . . . . . . 3 2 . Recyclers Shooed 9 | . . . . . . . . . . . . . . . . 2 . . . . . . . . . . . . 1 4 2 Parts Field Recycled . | . . . . . . . . . . . . . . . . . . . . . . . . . . . . . . . . Retrieved Matter . | . . . . . . . . . . . . . . . . . . . . . . . . . . . . . . . . Parts Self-Destructed . | . . . . . . . . . . . . . . . . . . . . . . . . . . . . . . . . Prevented . | . . . . . . . . . . . . . . . . . . . . . . . . . . . . . . . . Kills | -11 -10 -10 -9 -9 -9 -8 -8 -8 -7 -7 -7 -7 -6 -6 -5 -5 -5 -5 -5 -4 -4 -4 -4 -3 -3 -3 -2 -2 -2 -1 -1 ------- Run | Scr Mat Min Mat Min Exi Min Mat Sto Fac Low Low Dat Pro Fac Fac Ext Cet Arc Hub Fac Upp Upp War Pro Res Qua Res Tes Sec Acc Com Combat Hostiles Destroyed 312 | . 8 . 14 8 . 5 26 30 . 10 10 . 2 3 4 9 4 2 7 9 . 3 6 18 4 13 3 13 24 39 38 Melee 6 | . . . . . . . . . . . . . . . . . . . . . . . . . . . . 1 . . 5 Guns 267 | . 8 . 14 8 . 5 26 30 . 10 10 . 2 3 4 5 4 . 7 9 . 3 6 18 4 13 3 11 23 34 7 Cannons 25 | . . . . . . . . . . . . . . . . 3 . 1 . . . . . . . . . . . 2 19 AOE 1 | . . . . . . . . . . . . . . . . . . . . . . . . . . . . . 1 . . Classes Destroyed 21 | . 3 . 5 1 . 1 3 . . 1 . . . . . 1 . . . . . . 2 . . . 1 2 1 . . Worker 16 | . . . 1 1 . . 2 1 . . . . . . 2 . . . 3 . . . . . 1 . . 2 1 1 1 Builder 9 | . . . . . . . 1 . . . . . . . . 1 . . . . . . . . . 3 . . 1 3 . Hauler 23 | . 2 . 5 . . . 4 5 . . . . . 1 . . . . 1 . . . . . . . . . 3 2 . Recycler 11 | . . . 1 . . . 2 4 . . . . . . . 1 . . . . . . . . . . 1 . . 2 . Operator 11 | . . . . . . . 3 2 1 . . . . 1 . 2 . . 1 . . . . . . . . . 1 . . Watcher 9 | . . . . . . . 2 . . . . . . . 1 . . . 1 . . . . . . 1 . . 2 2 . Swarmer 35 | . 4 . 5 2 . . 5 3 . 2 2 . . . . 2 1 . . . . . 1 2 2 4 . . . . . Saboteur 2 | . . . . . . . . . . . . . . . . . . . . . . . 1 1 . . . . . . . Grunt 104 | . 4 . 4 3 . 3 11 16 . 2 4 . 1 1 1 1 . . 2 . . 2 . 6 1 6 . 3 11 9 13 Brawler 13 | . . . 1 . . 1 . . . . 2 . 1 . . . . . . . . . 2 2 . . . . 1 3 . Duelist 7 | . . . 1 . . . . . . 1 1 . . 1 . . . . . . . . . 1 . . . 1 . . 1 Protector 2 | . . . . . . . . . . . . . . . . . . . . . . . 1 . . . . . . 1 . Researcher 1 | . . . . . . . . . . . . . . . . . . . . . . . . . . . . 1 . . . Sentry 47 | . . . 3 . . . 8 11 . . 1 . . 1 . 3 . 2 5 4 . . . 2 1 . . . 3 1 2 Demolisher 1 | . . . . . . . . . . . . . . . . . . . . . . . . . . . 1 . . . . Hunter 30 | . . . . . . 1 2 . . . . . . . 1 1 1 . . 2 . . . 2 . . 1 3 5 9 2 Programmer 40 | . . . . . . . . . . 1 . . . . 2 1 . . . 3 . . 1 2 . 3 1 5 2 14 5 Q-Series 4 | . . . . . . . . . . . . . . . . . . . . . . . . . . . . . 2 2 . Behemoth 3 | . . . . . . . . . . . . . . . . 1 . . . . . 1 . . . . . . . . 1 Cetus Guard 2 | . . . . . . . . . . . . . . . . . 2 . . . . . . . . . . . . . . Enhanced Grunt 3 | . . . . . . . . . . . . . . . . . . . 3 . . . . . . . . . . . . Enhanced Q-Series 13 | . . . . . . . . . . . . . . . . . . . . . . . . . . . . . . . 13 Fortress 1 | . . . . . . . . . . . . . . . . . . . . . . . . . . . . 1 . . . Assembled 3 | . . . . 3 . . . . . . . . . . . . . . . . . . . . . . . . . . . Thug 1 | . . . . . . . . . . 1 . . . . . . . . . . . . . . . . . . . . . Butcher 3 | . . . . . . . . . . 3 . . . . . . . . . . . . . . . . . . . . . Best Kill Streak 10 | . 3 . 4 2 . 2 6 5 1 4 5 . 2 2 3 2 2 1 3 2 . 2 5 10 2 7 2 4 5 8 5 Combat Bots Only 10 | . 2 . 4 2 . 2 3 4 . 4 5 . 2 2 2 2 2 1 1 2 . 2 5 10 2 4 1 4 4 7 5 Max Kills in Single Turn 3 | . 2 . 1 1 . 1 2 2 1 2 1 . 1 1 1 1 1 1 3 1 . 1 2 2 1 2 1 2 2 2 1 Gunslinging 1 | . 1 . . . . . . . . 1 . . . . . . . . . . . . 1 1 . . . 1 1 1 . Exploded 1 | . . . . . . . . . . . . . . . . . . . . . . . . . . . . . 1 . . Melee 1 | . . . . . . . . . . . . . . . . . . . . . . . . . . . . 1 . . 1 Uniques/NPCs Destroyed 1 | . . . . . . . . . . . . . . . . . . . . . . . . . . . . . . . 1 MAIN.C Shell (-1/Command) Combat | -11 -10 -10 -9 -9 -9 -8 -8 -8 -7 -7 -7 -7 -6 -6 -5 -5 -5 -5 -5 -4 -4 -4 -4 -3 -3 -3 -2 -2 -2 -1 -1 -------- Run | Scr Mat Min Mat Min Exi Min Mat Sto Fac Low Low Dat Pro Fac Fac Ext Cet Arc Hub Fac Upp Upp War Pro Res Qua Res Tes Sec Acc Com Damage Taken 25607 | . 174 . 380 122 . 266 525 1005 . 933 157 . . 215 155 595 109 69 465 339 . 177 316 397 151 473 219 1481 1587 4684 10613 Core 2409 | . 27 . 14 30 . 14 62 73 . 18 7 . . 3 28 76 9 . . 30 . . 16 28 9 71 . 158 144 277 1315 Absorbed by Shields 5250 | . . . . . . . . 24 . 52 52 . . 12 . 173 31 . . . . . . . . . . . . 291 4615 Redirected to Shielding 112 | . . . . . . . . . . . . . . . . . . . . . . . . . . . . . . . 112 Regen/Repaired (Parts) 2202 | . . . . . . . 222 377 . . . . . . . . . . . 371 . . . . . 96 . 362 48 . 726 Core Remaining (%) 89 | 100 . 89 . . . 85 . 75 . . . . 96 99 . . . . 88 . . . . 93 . 93 . . 79 . . Volleys Fired 994 | . 29 . 45 19 . 20 81 100 2 39 32 . 3 13 19 41 18 10 16 19 . 8 14 29 10 48 11 25 55 107 181 Largest 4 | . 2 . 2 2 . 2 2 2 2 2 2 . 2 2 3 3 3 3 3 3 . 3 3 3 4 4 4 4 4 4 3 Hottest 300 | . 70 . 46 46 . 46 100 53 40 40 40 . 40 40 98 188 175 175 175 145 . 145 145 140 175 240 185 183 240 225 300 Shots Fired 2226 | . 58 . 90 38 . 40 162 200 4 78 64 . 6 26 57 104 33 20 44 53 . 19 42 86 36 122 37 83 199 295 230 Gun 1953 | . 58 . 90 38 . 40 162 200 4 78 64 . 6 26 38 55 24 15 38 53 . 19 42 86 36 122 37 83 199 279 61 Cannon 273 | . . . . . . . . . . . . . . . 19 49 9 5 6 . . . . . . . . . . 16 169 Launcher . | . . . . . . . . . . . . . . . . . . . . . . . . . . . . . . . . Special . | . . . . . . . . . . . . . . . . . . . . . . . . . . . . . . . . Kinetic 1645 | . 39 . 90 38 . 40 149 200 4 78 64 . 6 26 57 82 25 10 27 38 . 16 28 58 30 88 31 55 152 147 67 Thermal 270 | . 19 . . . . . . . . . . . . . . . . . . 15 . 3 14 . . 34 4 . 17 62 102 Explosive . | . . . . . . . . . . . . . . . . . . . . . . . . . . . . . . . . Electromagnetic 311 | . . . . . . . 13 . . . . . . . . 22 8 10 17 . . . . 28 6 . 2 28 30 86 61 Robot Hit Streak 60 | . 13 . 44 19 . 47 60 51 22 36 22 . 8 19 24 36 20 18 27 24 . 40 58 20 17 18 12 21 35 40 35 Robot Miss Streak 4 | . 2 . 2 1 . . 4 1 1 2 2 . . 1 1 1 1 1 1 1 . . 2 2 2 1 3 2 3 2 2 Penetration Max 2 | . . . . . . . 1 1 . . . . . . . 1 . . 1 . . . 1 1 1 1 1 1 2 1 . Secondary Targets 38 | . 2 . 1 1 . 2 1 3 . 3 2 . . . . . . . . 1 . . 2 5 . 1 . 1 8 5 . Max Gunslinging Chain 1 | . 1 . 1 1 . 1 1 1 . 1 1 . . . . . . . . 1 . . 1 1 . 1 . 1 1 1 . Capacitor 129 | . . . . . . . . . . . . . . . . . . . . . . . . . . . . . . 29 100 Shots Hit Robots 1897 | . 43 . 78 34 . 39 136 173 2 72 53 . 6 24 43 91 29 18 37 44 . 16 37 71 29 74 24 97 161 238 228 Core Hits 819 | . 17 . 31 17 . 14 60 61 1 20 21 . 3 11 16 27 12 6 26 21 . 9 13 39 14 35 11 42 83 112 97 Critical Kills 87 | . . . . 1 . . 4 13 . . 3 . 1 1 1 1 2 . 4 3 . 1 2 7 3 6 1 5 16 11 1 Critical Parts Destroyed 82 | . 1 . . . . 2 8 4 . 2 1 . . . . 1 2 . 1 2 . 1 5 2 3 11 2 3 20 11 . Critical Strikes 214 | . 1 . 1 1 . 2 16 17 . 2 4 . 1 1 2 9 6 2 7 5 . 2 7 10 7 17 3 10 40 32 9 Meltdown 1 | . . . . . . . . . . . . . . . . . . . . . . . . . . . . . . . 1 Destroy 174 | . 1 . 1 1 . 2 13 17 . 2 4 . 1 1 1 2 4 . 6 5 . 2 7 9 7 17 3 8 38 22 . Blast 12 | . . . . . . . . . . . . . . . 1 5 2 . . . . . . . . . . . . . 4 Corrupt 23 | . . . . . . . 3 . . . . . . . . 2 . 2 1 . . . . 1 . . . 1 2 10 1 Sever 4 | . . . . . . . . . . . . . . . . . . . . . . . . . . . . 1 . . 3 Melee Attacks 72 | . . . . . . . . 5 . . . . . . . . . . 2 . . 2 . . . 1 . 38 . 4 20 Kinetic 2 | . . . . . . . . . . . . . . . . . . . . . . . . . . . . . . . 2 Impact . | . . . . . . . . . . . . . . . . . . . . . . . . . . . . . . . . Slashing 65 | . . . . . . . . 5 . . . . . . . . . . . . . . . . . . . 38 . 4 18 Piercing 5 | . . . . . . . . . . . . . . . . . . . 2 . . 2 . . . 1 . . . . . Sneak Attacks . | . . . . . . . . . . . . . . . . . . . . . . . . . . . . . . . . Combat Hostiles . | . . . . . . . . . . . . . . . . . . . . . . . . . . . . . . . . Follow-up Attacks . | . . . . . . . . . . . . . . . . . . . . . . . . . . . . . . . . Damage Inflicted 54988 | . 472 . 1131 514 . 522 2816 3223 36 1511 1073 . 110 474 904 2296 949 403 1590 1161 . 461 1368 1948 738 2292 662 4432 4775 6941 12186 Guns 38144 | . 472 . 1131 514 . 522 2764 3223 36 1511 1073 . 110 474 524 1065 563 294 786 1161 . 461 1368 1948 738 2292 662 1643 4584 6220 2005 Cannons 11609 | . . . . . . . . . . . . . . . 380 1120 185 109 176 . . . . . . . . . . 721 8918 Explosions 1174 | . . . . . . . 52 . . . . . . . . 111 201 . 628 . . . . . . . . . 182 . . Melee 4052 | . . . . . . . . . . . . . . . . . . . . . . . . . . . . 2789 . . 1263 Ramming 9 | . . . . . . . . . . . . . . . . . . . . . . . . . . . . . 9 . . Kinetic 34010 | . 281 . 1131 514 . 522 2529 3223 36 1511 1073 . 110 474 904 1785 547 206 587 777 . 378 1009 1390 646 1974 503 1139 3582 3042 4137 Thermal 9329 | . 191 . . . . . 52 . . . . . . . . 111 201 . . 384 . 83 359 . . 318 101 . 532 1711 5286 Explosive . | . . . . . . . . . . . . . . . . . . . . . . . . . . . . . . . . Electromagnetic 7646 | . . . . . . . 235 . . . . . . . . 400 201 197 1003 . . . . 558 92 . 58 504 652 2188 1558 Impact . | . . . . . . . . . . . . . . . . . . . . . . . . . . . . . . . . Slashing 3994 | . . . . . . . . . . . . . . . . . . . . . . . . . . . . 2789 . . 1205 Piercing . | . . . . . . . . . . . . . . . . . . . . . . . . . . . . . . . . Highest Corruption 13 | . 2 2 . . . . . . . . . . . 2 2 . . . 13 1 . . . . . 1 . 3 3 1 . Average Corruption 2 | . 1 2 . . . . . . . . . . . 1 1 . . . 3 1 . . . . . 1 . 1 1 1 . Corruption Purged 10 | . . . . . . . . . . . . . . 3 2 . . . . 1 . . . . . . . . 3 1 . Corruption Blocked 40 | . . . . . . . . . . . . . . . . . . . . . . . . . . . . 20 . 4 16 Effects 27 | . 2 . . . . . . . . . . . . . . . . . 15 1 . . . . . 2 . 6 1 . . Message Errors 4 | . . . . . . . . . . . . . . . . . . . 4 . . . . . . . . . . . . Matter Fused 5 | . . . . . . . . . . . . . . . . . . . 4 . . . . . . . . 1 . . . Heat Flow Errors 2 | . . . . . . . . . . . . . . . . . . . 1 . . . . . . 1 . . . . . Energy Discharges 5 | . 1 . . . . . . . . . . . . . . . . . 2 1 . . . . . 1 . . . . . Parts Rejected 2 | . 1 . . . . . . . . . . . . . . . . . . . . . . . . . . 1 . . . Data Loss (minor) 3 | . . . . . . . . . . . . . . . . . . . 1 . . . . . . . . 1 1 . . Data Loss (major) 2 | . . . . . . . . . . . . . . . . . . . . . . . . . . . . 2 . . . Misfires 3 | . . . . . . . . . . . . . . . . . . . 3 . . . . . . . . . . . . Weapon Failures 1 | . . . . . . . . . . . . . . . . . . . . . . . . . . . . 1 . . . Overload Shots 2 | . . . . . . . . . . . . . . . . . . . . . . . . . . 1 . . 1 . . Effects 1 | . . . . . . . . . . . . . . . . . . . . . . . . . . . . . 1 . . Short Circuit 1 | . . . . . . . . . . . . . . . . . . . . . . . . . . . . . 1 . . Overflow Damage 377 | . . . . . . . . . . . . . . . 27 22 . . . . . . . . . . . . 26 29 273 Projectiles 270 | . . . . . . . . . . . . . . . 27 22 . . . . . . . . . . . . . 29 192 Explosions 26 | . . . . . . . . . . . . . . . . . . . . . . . . . . . . . 26 . . Melee 81 | . . . . . . . . . . . . . . . . . . . . . . . . . . . . . . . 81 Knockbacks 51 | . . . . . . . . . . . . . . . 6 5 3 . . . . . . . . . . . . . 37 Impact . | . . . . . . . . . . . . . . . . . . . . . . . . . . . . . . . . Kinetic 49 | . . . . . . . . . . . . . . . 6 5 3 . . . . . . . . . . . . . 35 Secondary 2 | . . . . . . . . . . . . . . . . . . . . . . . . . . . . . . . 2 Self-Inflicted Damage 143 | . . . . . . . . . . . . . . . . . . . 110 . . . . . . . . . 33 . . Shots 3 | . . . . . . . . . . . . . . . . . . . 2 . . . . . . . . . 1 . . Rammed 1 | . . . . . . . . . . . . . . . . . . . . . . . . . . . . . 1 . . Targets Rammed 1 | . . . . . . . . . . . . . . . . . . . . . . . . . . . . . 1 . . Kicked . | . . . . . . . . . . . . . . . . . . . . . . . . . . . . . . . . Crushed . | . . . . . . . . . . . . . . . . . . . . . . . . . . . . . . . . Highest Temperature 357 | . 230 . 23 6 . 22 117 355 . . . . . . 19 198 192 180 180 198 . 132 . 14 . 232 . 16 124 110 357 Average Temperature 69 | . 65 . 4 3 . 7 31 95 . . . . . . 5 70 83 76 51 73 . 61 . 12 . 151 . 7 16 40 119 Received Heat Transfer 4606 | . 93 . 162 51 . 144 297 808 . 163 91 . . 63 72 164 21 . 48 36 . 36 54 226 57 105 . 333 225 229 1128 Effects 9 | . 3 . . . . . . 1 . . . . . . . . . . . . . . . . . . . . . . 5 Energy Bleed 4 | . . . . . . . . 1 . . . . . . . . . . . . . . . . . . . . . . 3 Interference 5 | . 3 . . . . . . . . . . . . . . . . . . . . . . . . . . . . . 2 Siege Activations . | . . . . . . . . . . . . . . . . . . . . . . . . . . . . . . . . Robots Corrupted 14 | . . . . . . . . . . . . . . . . 1 . 1 3 . . . . . . . . 1 . 3 5 Combat Hostiles 11 | . . . . . . . . . . . . . . . . 1 . 1 . . . . . . . . . 1 . 3 5 Parts Fried 43 | . . . . . . . . . . . . . . . . 4 . 2 9 . . . . 2 . . . 2 3 14 7 Impact Corruptions . | . . . . . . . . . . . . . . . . . . . . . . . . . . . . . . . . Robots Melted 1 | . . . . . . . . . . . . . . . . . . . . . . . . . . . . . . . 1 Combat Hostiles 1 | . . . . . . . . . . . . . . . . . . . . . . . . . . . . . . . 1 Parts Melted 8 | . . . 1 . . . . . . . . . . . . . . . . . . . 1 . 1 1 . . . 1 3 Heat Transferred 9353 | . 555 . . . . . 50 . . . . . . . . 150 275 . . 481 . 111 426 . . 370 111 . 544 1980 4300 Parts Sabotaged . | . . . . . . . . . . . . . . . . . . . . . . . . . . . . . . . . Parts Stolen . | . . . . . . . . . . . . . . . . . . . . . . . . . . . . . . . . Parts Stripped . | . . . . . . . . . . . . . . . . . . . . . . . . . . . . . . . . Power Chain Reactions 4 | . . . . . . . 1 . . . . . . . . 1 1 . . . . . . . . . . . 1 . . Missiles Intercepted . | . . . . . . . . . . . . . . . . . . . . . . . . . . . . . . . . Alert | -11 -10 -10 -9 -9 -9 -8 -8 -8 -7 -7 -7 -7 -6 -6 -5 -5 -5 -5 -5 -4 -4 -4 -4 -3 -3 -3 -2 -2 -2 -1 -1 ------- Run | Scr Mat Min Mat Min Exi Min Mat Sto Fac Low Low Dat Pro Fac Fac Ext Cet Arc Hub Fac Upp Upp War Pro Res Qua Res Tes Sec Acc Com Peak Influence 755 | . 137 4 392 140 . 75 365 360 27 . . . . 282 139 205 469 169 755 426 . . . . 207 185 69 308 618 567 297 Initial 280 | . . 4 1 10 . . . 110 7 . . . . 25 . 23 33 47 40 271 . . . . 59 8 . 25 24 280 . Average 118 | . 42 4 80 36 . 33 120 105 10 . . . . 123 47 63 224 131 168 204 . . . . 105 76 28 117 271 264 113 Maximum Alert Level 3 | . . . 1 . . . 1 1 . . . . . 1 . 1 2 . 3 2 . . . . 1 . . 1 2 2 1 Low Security (%) 77 | 100 100 100 82 100 . 100 75 79 100 . . . . 73 100 95 30 100 61 45 . . . . 90 100 100 77 36 42 74 Level 1 18 | . . . 17 . . . 24 20 . . . . . 26 . 4 62 . 29 52 . . . . 9 . . 22 41 30 25 Level 2 4 | . . . . . . . . . . . . . . . . . 7 . 6 1 . . . . . . . . 21 26 . Level 3 . | . . . . . . . . . . . . . . . . . . . 2 . . . . . . . . . . . . Level 4 . | . . . . . . . . . . . . . . . . . . . . . . . . . . . . . . . . Level 5 . | . . . . . . . . . . . . . . . . . . . . . . . . . . . . . . . . High Security . | . . . . . . . . . . . . . . . . . . . . . . . . . . . . . . . . Max Security . | . . . . . . . . . . . . . . . . . . . . . . . . . . . . . . . . Squads Dispatched 55 | . 1 . 1 . . . 4 5 1 . 1 . . . . 1 . . 2 3 . . . 1 5 2 1 6 7 9 5 Investigation 9 | . 1 . . . . . 1 1 1 . . . . . . . . . . . . . . . 2 . . 1 1 1 . Extermination 13 | . . . . . . . . . . . . . . . . . . . 1 2 . . . . . 1 . 2 1 4 2 Reinforcement 28 | . . . 1 . . . 3 3 . . . . . . . 1 . . 1 1 . . . . 3 1 1 3 5 2 3 Assault 4 | . . . . . . . . . . . 1 . . . . . . . . . . . . 1 . . . . . 2 . Garrison 1 | . . . . . . . . 1 . . . . . . . . . . . . . . . . . . . . . . . Intercept . | . . . . . . . . . . . . . . . . . . . . . . . . . . . . . . . . Searches Triggered . | . . . . . . . . . . . . . . . . . . . . . . . . . . . . . . . . Data Miner Redirects 2 | . . . . . . . . . . . . . . . . . . . . . . . . . . . . 1 . 1 . Construction Impeded 2 | . . . . . . . . 1 . . . . . . . . . . 1 . . . . . . . . . . . . Haulers Reinforced 4 | . . . . . . . . . . . . . . . . . . . . . . . . . . . . . 3 1 . Active Scanning Responses . | . . . . . . . . . . . . . . . . . . . . . . . . . . . . . . . . Cargo Convoy Interrupts . | . . . . . . . . . . . . . . . . . . . . . . . . . . . . . . . . Stealth | -11 -10 -10 -9 -9 -9 -8 -8 -8 -7 -7 -7 -7 -6 -6 -5 -5 -5 -5 -5 -4 -4 -4 -4 -3 -3 -3 -2 -2 -2 -1 -1 --------- Run | Scr Mat Min Mat Min Exi Min Mat Sto Fac Low Low Dat Pro Fac Fac Ext Cet Arc Hub Fac Upp Upp War Pro Res Qua Res Tes Sec Acc Com Distress Signals 41 | . 2 . 3 . . . 6 4 . . . . . . . 2 2 . . . . . . . 3 1 8 2 . 3 5 Communications Jammed 253 | . . . . . . . . . . . . . . . 21 24 27 . 2 . . . . . 1 44 6 16 71 41 . Distress Signals 251 | . . . . . . . . . . . . . . . 21 24 27 . 1 . . . . . 1 44 6 16 71 40 . Times Spotted 521 | . 21 . 23 11 . 5 40 42 1 10 17 . 1 8 9 19 19 3 21 14 . 7 17 19 8 22 6 20 38 57 63 Peak Tracking Total 12 | . 4 . 6 2 . 2 4 5 1 4 6 . . 3 3 3 5 1 5 3 . 2 6 6 3 4 1 4 8 12 8 Tactical Retreats 19 | . 1 . 1 . . . 2 . . . 1 . . . 1 2 . . . . . 3 . 1 . 1 . . . 4 2 Traps | -11 -10 -10 -9 -9 -9 -8 -8 -8 -7 -7 -7 -7 -6 -6 -5 -5 -5 -5 -5 -4 -4 -4 -4 -3 -3 -3 -2 -2 -2 -1 -1 ------- Run | Scr Mat Min Mat Min Exi Min Mat Sto Fac Low Low Dat Pro Fac Fac Ext Cet Arc Hub Fac Upp Upp War Pro Res Qua Res Tes Sec Acc Com Traps Triggered 22 | . 4 . 2 . . . 1 1 . . . . . 4 . 2 . . 2 2 . . . . . 1 . . . 2 1 Indirectly 1 | . . . . . . . . . . . . . . . . . . . 1 . . . . . . . . . . . . Trap Hack Attempts . | . . . . . . . . . . . . . . . . . . . . . . . . . . . . . . . . Triggered . | . . . . . . . . . . . . . . . . . . . . . . . . . . . . . . . . Disarmed 3 | . . . . . . . . . . . . . . . . . . . 3 . . . . . . . . . . . . Reprogrammed . | . . . . . . . . . . . . . . . . . . . . . . . . . . . . . . . . Reused . | . . . . . . . . . . . . . . . . . . . . . . . . . . . . . . . . Traps Extracted . | . . . . . . . . . . . . . . . . . . . . . . . . . . . . . . . . Installed . | . . . . . . . . . . . . . . . . . . . . . . . . . . . . . . . . Triggered 16 | . . . . . . . . . . . . . . . . . . . . . . 1 14 . . . . . . . 1 Machines | -11 -10 -10 -9 -9 -9 -8 -8 -8 -7 -7 -7 -7 -6 -6 -5 -5 -5 -5 -5 -4 -4 -4 -4 -3 -3 -3 -2 -2 -2 -1 -1 ---------- Run | Scr Mat Min Mat Min Exi Min Mat Sto Fac Low Low Dat Pro Fac Fac Ext Cet Arc Hub Fac Upp Upp War Pro Res Qua Res Tes Sec Acc Com Machines Disabled 42 | . . . . 1 . . 1 2 . . . . . 1 1 . . 3 15 3 . . . . . 8 . 1 5 . 1 Max in Single Turn 11 | . . . . . . . 1 1 . . . . . . 1 . . 1 11 2 . . . . . 1 . 1 1 . 1 Garrison Access 9 | . . . . . . . . 1 . . . . . . . . . . 1 . . . . . . 1 2 . 1 3 . Network Hub 2 | . . . . . . . . . . . . . . . . . . . 2 . . . . . . . . . . . . Energy Cycler 1 | . . . . . . . . . . . . . . . . 1 . . . . . . . . . . . . . . . Machines Sabotaged . | . . . . . . . . . . . . . . . . . . . . . . . . . . . . . . . . Garrisons Compromised . | . . . . . . . . . . . . . . . . . . . . . . . . . . . . . . . . Overloaded Fab Kills . | . . . . . . . . . . . . . . . . . . . . . . . . . . . . . . . . Hacking | -11 -10 -10 -9 -9 -9 -8 -8 -8 -7 -7 -7 -7 -6 -6 -5 -5 -5 -5 -5 -4 -4 -4 -4 -3 -3 -3 -2 -2 -2 -1 -1 --------- Run | Scr Mat Min Mat Min Exi Min Mat Sto Fac Low Low Dat Pro Fac Fac Ext Cet Arc Hub Fac Upp Upp War Pro Res Qua Res Tes Sec Acc Com Machines Accessed 95 | . 9 1 6 . . . 8 12 2 1 . 4 . 1 1 6 1 . 9 4 . . . . 1 8 3 3 4 7 4 Terminals 63 | . 7 . 4 . . . 4 7 2 . . . . 1 . 6 1 . 8 3 . . . . 1 5 1 3 3 3 4 Fabricators . | . . . . . . . . . . . . . . . . . . . . . . . . . . . . . . . . Repair Stations 6 | . . . . . . . 1 2 . . . . . . 1 . . . . 1 . . . . . 1 . . . . . Recycling Units 8 | . 2 . 1 . . . 2 2 . . . . . . . . . . . . . . . . . . . . . 1 . Scanalyzers 3 | . . . 1 . . . 1 . . . . . . . . . . . . . . . . . . 1 . . . . . Garrison Access 9 | . . . . . . . . 1 . . . . . . . . . . 1 . . . . . . 1 2 . 1 3 . Total Hacks 317 | . 25 1 19 . . . 32 32 6 1 . 32 . 3 4 20 1 . 24 23 . . . . 4 23 4 12 16 23 12 Successful 208 | . 16 1 14 . . . 22 27 3 1 . 32 . 1 2 12 1 . 15 12 . . . . 1 15 3 8 4 12 6 Failed 109 | . 9 . 5 . . . 10 5 3 . . . . 2 2 8 . . 9 11 . . . . 3 8 1 4 12 11 6 Catastrophic 23 | . . . 1 . . . 1 . 1 . . . . 1 . 2 . . 2 2 . . . . . 3 . 1 3 4 2 Database Lockouts . | . . . . . . . . . . . . . . . . . . . . . . . . . . . . . . . . Manual 131 | . 13 . 9 . . . 13 12 7 . . . . 2 . 10 1 . 9 13 . . 1 . 2 13 . 5 5 6 10 Terminals 206 | . 19 . 13 . . . 15 17 6 . . . . 3 . 20 1 . 23 19 . . . . 4 18 2 12 14 8 12 Fabricators . | . . . . . . . . . . . . . . . . . . . . . . . . . . . . . . . . Repair Stations 20 | . . . . . . . 4 6 . . . . . . 4 . . . . 4 . . . . . 2 . . . . . Recycling Units 30 | . 6 . 4 . . . 7 7 . . . . . . . . . . . . . . . . . . . . . 6 . Scanalyzers 9 | . . . 2 . . . 6 . . . . . . . . . . . . . . . . . . 1 . . . . . Garrison Access 18 | . . . . . . . . 2 . . . . . . . . . . 1 . . . . . . 2 2 . 2 9 . Terminal Hacks 133 | . 10 1 8 . . . 8 13 3 1 . 32 . 1 . 9 1 . 13 5 . . . . 1 9 1 6 3 4 4 Record 14 | . . . . . . . . . . . . 11 . . . . . . . . . . . . . 2 . . . 1 . Part Schematic 12 | . . . . . . . . . . . . 11 . . . . . . . . . . . . . . . 1 . . . Robot Schematic 8 | . . . . . . . . 1 . . . 7 . . . . . . . . . . . . . . . . . . . Robot Analysis 12 | . 5 . 1 . . . 3 . 3 . . . . . . . . . . . . . . . . . . . . . . Prototype ID Bank 10 | . 1 . 2 . . . 2 . . . . 3 . . . 1 . . 1 . . . . . . . . . . . . Open Door 7 | . . 1 . . . . . 4 . 1 . . . . . . 1 . . . . . . . . . . . . . . Open DSF 1 | . . . . . . . . . . . . . . . . . . . . . . . . . . . 1 . . . . Level Access Points 5 | . . . . . . . . 1 . . . . . . . . . . 1 . . . . . . 1 . 1 1 . . Branch Access Points 3 | . . . . . . . . . . . . . . . . . . . 1 1 . . . . 1 . . . . . . Machine Index 4 | . . . . . . . . . . . . . . . . . . . 1 1 . . . . . 1 . . . . 1 Terminal Index 3 | . . . . . . . . . . . . . . . . 1 . . . . . . . . . . . . . 1 1 Garrison Index 3 | . . . . . . . . . . . . . . . . . . . 1 . . . . . . . . 1 . 1 . Unreport Threat 18 | . 2 . 2 . . . 2 2 . . . . . . . 3 . . 1 1 . . . . . 3 . 1 . . 1 Locate Traps 7 | . 1 . 1 . . . . 1 . . . . . . . 1 . . 2 . . . . . . . . . . . 1 Disarm Traps 1 | . . . . . . . . . . . . . . . . . . . 1 . . . . . . . . . . . . Security Status 1 | . . . 1 . . . . . . . . . . . . . . . . . . . . . . . . . . . . Recall Extermination 1 | . . . . . . . . . . . . . . . . . . . . 1 . . . . . . . . . . . Recall Reinforcements 3 | . . . . . . . . . . . . . . . . . . . 1 . . . . . . . . . 2 . . Hauler Manifests 6 | . . . 1 . . . 1 1 . . . . . . . 1 . . 1 . . . . . . 1 . . . . . Registered Components 3 | . . . . . . . . . . . . . . 1 . 1 . . . . . . . . . . . 1 . . . Registered Prototypes 1 | . . . . . . . . 1 . . . . . . . . . . . . . . . . . . . . . . . Zone Layout 10 | . 1 . . . . . . 2 . . . . . . . 1 . . 2 1 . . . . . 1 . 1 . 1 . Fabricator Hacks . | . . . . . . . . . . . . . . . . . . . . . . . . . . . . . . . . Repair Station Hacks 18 | . . . . . . . 4 6 . . . . . . 2 . . . . 4 . . . . . 2 . . . . . Scan Component 10 | . . . . . . . 2 3 . . . . . . 2 . . . . 2 . . . . . 1 . . . . . Repair 8 | . . . . . . . 2 3 . . . . . . . . . . . 2 . . . . . 1 . . . . . Recycling Unit Hacks 6 | . 2 . 1 . . . 1 1 . . . . . . . . . . . . . . . . . . . . . 1 . Retrieve Components 6 | . 2 . 1 . . . 1 1 . . . . . . . . . . . . . . . . . . . . . 1 . Scanalyzer 9 | . . . 2 . . . 6 . . . . . . . . . . . . . . . . . . 1 . . . . . Insert Component 6 | . . . 2 . . . 3 . . . . . . . . . . . . . . . . . . 1 . . . . . Analyze 3 | . . . . . . . 3 . . . . . . . . . . . . . . . . . . . . . . . . Garrison Access Hacks 9 | . . . . . . . . 1 . . . . . . . . . . 1 . . . . . . 1 2 . 1 3 . Seal Access 9 | . . . . . . . . 1 . . . . . . . . . . 1 . . . . . . 1 2 . 1 3 . Unauthorized Hacks 33 | . 4 . 3 . . . 3 6 . . . . . . . 3 . . 1 3 . . . . . 2 . 2 . 4 2 Terminals 17 | . 1 . . . . . . 1 . . . . . . . 3 . . 1 3 . . . . . 2 . 2 . 2 2 Track 3 | . 1 . . . . . . . . . . . . . . . . . 1 . . . . . . 1 . . . . . Botnet 9 | . . . . . . . . . . . . . . . . 2 . . . 2 . . . . . 1 . 1 . 1 2 Disrupt 1 | . . . . . . . . 1 . . . . . . . . . . . . . . . . . . . . . . . Operators 4 | . . . . . . . . . . . . . . . . 1 . . . 1 . . . . . . . 1 . 1 . Fabricators . | . . . . . . . . . . . . . . . . . . . . . . . . . . . . . . . . Repair Stations . | . . . . . . . . . . . . . . . . . . . . . . . . . . . . . . . . Recycling Units 16 | . 3 . 3 . . . 3 5 . . . . . . . . . . . . . . . . . . . . . 2 . Reject 5 | . . . 1 . . . 1 2 . . . . . . . . . . . . . . . . . . . . . 1 . Recyclers 3 | . 1 . 1 . . . . 1 . . . . . . . . . . . . . . . . . . . . . . . Mask 7 | . 1 . 1 . . . 2 2 . . . . . . . . . . . . . . . . . . . . . 1 . Tunnel 1 | . 1 . . . . . . . . . . . . . . . . . . . . . . . . . . . . . . Scanalyzers . | . . . . . . . . . . . . . . . . . . . . . . . . . . . . . . . . Garrison Access . | . . . . . . . . . . . . . . . . . . . . . . . . . . . . . . . . Data Cores Recovered 4 | . . . . . . . 1 1 1 . . . . . . . . . 1 . . . . . . . . . . . . Used 3 | . . . . . . . . 1 1 . . . . . . . . . 1 . . . . . . . . . . . . Hacking Detections 68 | . 8 . 5 . . . 7 8 2 . . . . 1 1 6 . . 7 3 . . . . 1 5 . 2 3 6 3 Full Trace Events 4 | . . . . . . . 1 1 1 . . . . . . . . . . . . . . . . . . . 1 . . Feedback Events . | . . . . . . . . . . . . . . . . . . . . . . . . . . . . . . . . Feedback Blocked . | . . . . . . . . . . . . . . . . . . . . . . . . . . . . . . . . Robot Schematics Acquired 9 | . . . . . . . . 1 . . . 7 . . . . . . . . . . . . . . . 1 . . . Robots Built . | . . . . . . . . . . . . . . . . . . . . . . . . . . . . . . . . Authchips . | . . . . . . . . . . . . . . . . . . . . . . . . . . . . . . . . Time . | . . . . . . . . . . . . . . . . . . . . . . . . . . . . . . . . Total Robot Build Rating . | . . . . . . . . . . . . . . . . . . . . . . . . . . . . . . . . Part Schematics Acquired 16 | . . . . . . . 3 . . . . 11 . . . . . . . . . . . . . . . 2 . . . Parts Built . | . . . . . . . . . . . . . . . . . . . . . . . . . . . . . . . . Authchips . | . . . . . . . . . . . . . . . . . . . . . . . . . . . . . . . . Time . | . . . . . . . . . . . . . . . . . . . . . . . . . . . . . . . . Total Part Build Rating . | . . . . . . . . . . . . . . . . . . . . . . . . . . . . . . . . Parts Repaired 8 | . . . . . . . 2 3 . . . . . . . . . . . 2 . . . . . 1 . . . . . Time 333 | . . . . . . . 52 136 . . . . . . . . . . . 108 . . . . . 37 . . . . . Parts Recycled . | . . . . . . . . . . . . . . . . . . . . . . . . . . . . . . . . Recycled Matter . | . . . . . . . . . . . . . . . . . . . . . . . . . . . . . . . . Retrieved Matter . | . . . . . . . . . . . . . . . . . . . . . . . . . . . . . . . . Retrieved Components 49 | . 11 . 9 . . . 9 10 . . . . . . . . . . . . . . . . . . . . . 10 . Parts Scanalyzed 3 | . . . . . . . 3 . . . . . . . . . . . . . . . . . . . . . . . . Part Schematics Acquired 3 | . . . . . . . 3 . . . . . . . . . . . . . . . . . . . . . . . . Parts Damaged . | . . . . . . . . . . . . . . . . . . . . . . . . . . . . . . . . Bothacking | -11 -10 -10 -9 -9 -9 -8 -8 -8 -7 -7 -7 -7 -6 -6 -5 -5 -5 -5 -5 -4 -4 -4 -4 -3 -3 -3 -2 -2 -2 -1 -1 ------------ Run | Scr Mat Min Mat Min Exi Min Mat Sto Fac Low Low Dat Pro Fac Fac Ext Cet Arc Hub Fac Upp Upp War Pro Res Qua Res Tes Sec Acc Com Used RIF Installer . | . . . . . . . . . . . . . . . . . . . . . . . . . . . . . . . . Robots Hacked . | . . . . . . . . . . . . . . . . . . . . . . . . . . . . . . . . Non-combat . | . . . . . . . . . . . . . . . . . . . . . . . . . . . . . . . . Combat . | . . . . . . . . . . . . . . . . . . . . . . . . . . . . . . . . Robot Hacks Applied . | . . . . . . . . . . . . . . . . . . . . . . . . . . . . . . . . Relay Couplers Released 3 | . . . . . . . . . . . . . . . . . . . . . . . . . . 3 . . . . . Programmers 3 | . . . . . . . . . . . . . . . . . . . . . . . . . . 3 . . . . . Fabnet Peak Effective % . | . . . . . . . . . . . . . . . . . . . . . . . . . . . . . . . . Robots Rewired 1 | . . . . . . . . . . . 1 . . . . . . . . . . . . . . . . . . . . Allies Hacked 1 | . . . . . . . . . . . . . . . . 1 . . . . . . . . . . . . . . . Hacks Repelled . | . . . . . . . . . . . . . . . . . . . . . . . . . . . . . . . . Allies | -11 -10 -10 -9 -9 -9 -8 -8 -8 -7 -7 -7 -7 -6 -6 -5 -5 -5 -5 -5 -4 -4 -4 -4 -3 -3 -3 -2 -2 -2 -1 -1 -------- Run | Scr Mat Min Mat Min Exi Min Mat Sto Fac Low Low Dat Pro Fac Fac Ext Cet Arc Hub Fac Upp Upp War Pro Res Qua Res Tes Sec Acc Com Total Allies 21 | . . 3 . 2 . . . . . . 1 . 1 . . 9 5 . . . . . . . . . . . . . . Largest Group 7 | . . 3 3 2 . . . . . . 1 . 1 1 . 6 7 4 4 . . . . . . . . . . . . Highest-Rated Group 652 | . . 40 40 41 . . . . . . 30 . 96 96 . 300 652 384 384 . . . . . . . . . . . . Highest-Rated Ally 159 | . . 16 16 31 . . . . . . 30 . 96 96 . 159 159 96 96 . . . . . . . . . . . . Total Orders 10 | . . . . . . . . . . . . . . . . . . . . . . . . . . . . . . 10 . EXPLORE 10 | . . . . . . . . . . . . . . . . . . . . . . . . . . . . . . 10 . Ally Attacks 272 | . . . 24 11 . . . . . . 8 . 3 29 . 60 65 11 49 . . . . . . . . . . 12 . Total Damage 7998 | . . . 207 160 . . . . . . 147 . 90 813 . 1369 2273 410 2491 . . . . . . . . . . 38 . Kills 63 | . . . 3 4 . . . . . . 2 . . 6 . 10 17 2 18 . . . . . . . . . . 1 . Allies Corrupted 4 | . . . . . . . . . . . . . . . . . . . 4 . . . . . . . . . . . . Allies Melted 5 | . . . . 1 . . . . . . . . . . . . 1 . . . . . . . . . . . . . 3 Intel | -11 -10 -10 -9 -9 -9 -8 -8 -8 -7 -7 -7 -7 -6 -6 -5 -5 -5 -5 -5 -4 -4 -4 -4 -3 -3 -3 -2 -2 -2 -1 -1 ------- Run | Scr Mat Min Mat Min Exi Min Mat Sto Fac Low Low Dat Pro Fac Fac Ext Cet Arc Hub Fac Upp Upp War Pro Res Qua Res Tes Sec Acc Com Robot Analysis Total 12 | . 5 . 1 . . . 3 . 3 . . . . . . . . . . . . . . . . . . . . . . Derelict Logs Recovered 7 | . . . . . . . . . . 1 3 . 1 . . . . . . . . 2 . . . . . . . . . Drone Launches 20 | . . . . . . . . . . . . . . . . . . . . . . . . . . . . . . 20 . Drone Recoveries 10 | . . . . . . . . . . . . . . . . . . . . . . . . . . . . . . 10 . Exploration | -11 -10 -10 -9 -9 -9 -8 -8 -8 -7 -7 -7 -7 -6 -6 -5 -5 -5 -5 -5 -4 -4 -4 -4 -3 -3 -3 -2 -2 -2 -1 -1 ------------- Run | Scr Mat Min Mat Min Exi Min Mat Sto Fac Low Low Dat Pro Fac Fac Ext Cet Arc Hub Fac Upp Upp War Pro Res Qua Res Tes Sec Acc Com Turns Passed 26523 | 3 1427 146 1155 756 370 909 1542 1848 215 784 643 113 345 428 670 1323 408 100 1135 952 352 943 573 456 437 1288 1165 990 791 2299 1957 Spaces Moved 13986 | 1 790 89 583 425 230 525 732 822 139 449 372 77 227 224 389 710 195 46 638 466 220 554 320 222 249 716 770 511 345 1104 846 Core 11 | . . . . . . . . . . . . . . . . . . . . . . . . . . . . . . . 11 Treads 13975 | 1 790 89 583 425 230 525 732 822 139 449 372 77 227 224 389 710 195 46 638 466 220 554 320 222 249 716 770 511 345 1104 835 Legs . | . . . . . . . . . . . . . . . . . . . . . . . . . . . . . . . . Wheels . | . . . . . . . . . . . . . . . . . . . . . . . . . . . . . . . . Hover . | . . . . . . . . . . . . . . . . . . . . . . . . . . . . . . . . Flight . | . . . . . . . . . . . . . . . . . . . . . . . . . . . . . . . . Fastest Speed 50 | 160 160 160 160 160 160 160 160 150 148 148 148 148 148 148 152 152 158 160 160 160 160 160 160 160 145 145 145 145 145 152 50 Average Speed 157 | 160 160 160 160 160 160 160 160 168 148 148 148 148 148 165 152 154 159 160 160 160 160 160 160 160 156 145 145 145 154 164 164 Slowest Speed 250 | 160 160 160 160 160 160 160 160 240 148 225 148 148 148 225 152 235 163 160 240 160 160 160 160 160 160 145 145 145 250 245 240 Overloaded Moves . | . . . . . . . . . . . . . . . . . . . . . . . . . . . . . . . . Propulsion Burnouts . | . . . . . . . . . . . . . . . . . . . . . . . . . . . . . . . . Robots Hopped . | . . . . . . . . . . . . . . . . . . . . . . . . . . . . . . . . Cave-ins Triggered 4 | . . . . . . . . . . . . . . . . . . . . . . . . . . . . . . 3 1 Exploration Rate (%) 51 | 2 93 20 49 90 65 89 59 88 4 59 58 72 50 8 8 88 74 82 75 16 44 71 55 60 14 71 32 58 28 42 32 Regions Visited 31 Branch Regions 21 Pre-discovered Areas 4 | . 1 . . . . . . 1 . . 1 1 . . . . . . . . . . . . . . . . . . . Known Exits Taken 31 | 1 1 1 1 1 1 1 1 1 1 1 1 1 1 1 1 1 1 1 1 1 1 1 1 1 1 1 1 1 1 1 . Unknown Exits Taken . | . . . . . . . . . . . . . . . . . . . . . . . . . . . . . . . . Scrap Searched 14 | . . . . 2 . 1 . . . 2 1 . 2 . . . . . . . 3 2 . 1 . . . . . . . Spaces Dug 11 | . . . . . . . . 3 . . . . . . . . . . 1 . . 2 . . . 1 . . . 4 . Terrain Destroyed 536 | . . . . . . . 11 7 . . . . . . 1 4 6 2 311 58 . 6 19 28 1 6 2 7 27 19 21 Melee 10 | . . . . . . . . 3 . . . . . . . . . . 1 . . 2 . . . . . . . 4 . Projectile 154 | . . . . . . . 5 4 . . . . . . 1 4 3 2 13 12 . 4 19 28 1 6 2 7 9 13 21 AOE 370 | . . . . . . . 6 . . . . . . . . . 3 . 297 46 . . . . . . . . 18 . . Terrain Rammed . | . . . . . . . . . . . . . . . . . . . . . . . . . . . . . . . . Walls Destroyed . | . . . . . . . . . . . . . . . . . . . . . . . . . . . . . . . . Machines Disabled . | . . . . . . . . . . . . . . . . . . . . . . . . . . . . . . . . Actions | -11 -10 -10 -9 -9 -9 -8 -8 -8 -7 -7 -7 -7 -6 -6 -5 -5 -5 -5 -5 -4 -4 -4 -4 -3 -3 -3 -2 -2 -2 -1 -1 --------- Run | Scr Mat Min Mat Min Exi Min Mat Sto Fac Low Low Dat Pro Fac Fac Ext Cet Arc Hub Fac Upp Upp War Pro Res Qua Res Tes Sec Acc Com Total 16835 | 2 902 93 724 463 232 555 958 1148 145 517 420 76 233 265 441 865 271 57 717 630 220 590 351 258 274 879 794 625 471 1402 1257 Wait 957 | . 44 3 38 17 . 9 89 151 3 6 7 . . 2 14 82 16 . 30 125 . 21 . . 3 81 . 29 43 84 60 Move 13952 | . 789 88 582 424 229 524 731 821 138 448 371 76 226 223 388 709 194 45 637 465 219 553 319 221 248 715 769 510 345 1100 845 Hop . | . . . . . . . . . . . . . . . . . . . . . . . . . . . . . . . . Pick Up 213 | . 19 1 22 . 1 . 16 16 . 10 . . 1 7 7 9 13 1 9 7 . 2 2 1 2 9 4 3 4 21 26 Fast Attach 106 | . 4 . 3 . . . 5 6 . 1 1 . . 1 1 3 4 . 1 2 . . 6 1 2 6 2 5 6 23 23 Attach 109 | . 2 . 4 . . . 2 4 2 3 . . . 5 4 3 . . 5 2 . 1 1 . 3 3 3 1 4 17 40 Detach 31 | . . . . . . . . 2 . . . . . . . . . . . . . . 2 . . . . . . 5 22 Swap 121 | 2 4 . 6 2 1 1 13 24 . 2 1 . 1 7 3 6 4 . 8 5 . 2 . 3 1 4 1 6 5 6 3 Drop 266 | . 11 1 24 1 1 1 21 19 . 8 2 . 2 7 5 11 22 1 9 5 . 1 7 3 5 12 4 8 9 30 36 Fire 994 | . 29 . 45 19 . 20 81 100 2 39 32 . 3 13 19 41 18 10 16 19 . 8 14 29 10 48 11 25 55 107 181 Melee 72 | . . . . . . . . 5 . . . . . . . . . . 2 . . 2 . . . 1 . 38 . 4 20 Ram . | . . . . . . . . . . . . . . . . . . . . . . . . . . . . . . . . Kick . | . . . . . . . . . . . . . . . . . . . . . . . . . . . . . . . . Crush . | . . . . . . . . . . . . . . . . . . . . . . . . . . . . . . . . Escape Stasis 4 | . . . . . . . . . . . . . . . . . . . . . . . . . . . . . . 3 1 Rewire 8 | . . . . . . . . . . . 6 . . . . 1 . . . . 1 . . . . . . . . . . Trap . | . . . . . . . . . . . . . . . . . . . . . . . . . . . . . . . . Miscellaneous 2 | . . . . . . . . . . . . . . . . . . . . . . . . . . . . . . 2 . Route ------- -11/Scrapyard -10/Materials (discovered 4 exits: *Mat x3 / *Min) -10/Mines -9/Materials (discovered 3 exits: *Mat x2 / *Min) -9/Mines (discovered 3 exits: *Mat x2 / *Exi) -9/Exiles -8/Mines -8/Materials (discovered 2 exits: *Sto x2) -8/Storage -7/Factory -7/Lower Caves -7/Lower Caves -7/Data Miner -6/Proximity Caves -6/Factory -5/Factory (discovered 2 exits: *Ext x2) -5/Extension (discovered 2 exits: *Fac / *Cet) -5/Cetus (discovered 2 exits: *Fac / *Arc) -5/Archives (discovered 2 exits: *Hub x2) -5/Hub_04(d) (discovered 4 exits: *Fac x4) -4/Factory (discovered 4 exits: *Res / *Upp x2 / Arm) -4/Upper Caves -4/Upper Caves -4/Warlord -3/Proximity Caves -3/Research (discovered 2 exits: *Qua x2) -3/Quarantine -2/Research (discovered 2 exits: *Tes x2) -2/Testing (discovered 2 exits: *Acc / *Sec) -2/Section 7 -1/Access -1/Command (discovered 2 exits: *Sur x2) History --------- Turn | Location | Event 4 | -11/Scrapyard | Identified exit to Materials 4 | -11/Scrapyard | Discovered exit to Materials (range 0) 4 | -11/Scrapyard | Entered Materials 4 | -10/Materials | Evolved 1 slot: Utility x1 307 | -10/Materials | Build established: Hacker-Mutant 463 | -10/Materials | Identified exit to Materials 463 | -10/Materials | Discovered exit to Materials (range 16) 698 | -10/Materials | Discovered exit to Materials (range 9) 1038 | -10/Materials | Identified exit to Mines 1038 | -10/Materials | Discovered exit to Mines (range 9) 1188 | -10/Materials | Discovered exit to Materials (range 3) 1431 | -10/Materials | Entered Mines 1452 | -10/Mines | Met a Derelict bent on vengeance 1487 | -10/Mines | Discovered exit to Materials (range 10) 1508 | -10/Mines | Found the Drone Emporium 1515 | -10/Mines | Found Prototype Device 1550 | -10/Mines | Assisted by bots powering up and referring to "LRC-V3" 1577 | -10/Mines | Entered Materials 1577 | -9/Materials | Accompanied by 3 allies 1577 | -9/Materials | Evolved 2 slots: Utility x2 1701 | -9/Materials | Identified Splice Drone Bay 2084 | -9/Materials | Identified exit to Materials 2084 | -9/Materials | Discovered exit to Materials (range 16) 2592 | -9/Materials | Identified exit to Mines 2592 | -9/Materials | Discovered exit to Mines (range 8) 2645 | -9/Materials | Discovered exit to Materials (range 14) 2732 | -9/Materials | Entered Mines 2733 | -9/Mines | Assembled infested the area 2738 | -9/Mines | Assisted by a Guerilla fighting off Assembled 2987 | -9/Mines | Discovered exit to Materials (range 7) 3304 | -9/Mines | Discovered exit to Materials (range 6) 3481 | -9/Mines | Deemed a non-threat by the Exiles lab entrance 3481 | -9/Mines | Identified exit to Exiles 3481 | -9/Mines | Discovered exit to Exiles (range 5) 3488 | -9/Mines | Entered Exiles 3525 | -9/Exiles | Met 8R-AWN 3554 | -9/Exiles | Met EX-HEX 3604 | -9/Exiles | Met EX-BIN 3688 | -9/Exiles | Met EX-DEC 3839 | -9/Exiles | Identified exit to Mines 3839 | -9/Exiles | Discovered exit to Mines (range 14) 3858 | -9/Exiles | Entered Mines 4756 | -8/Mines | Discovered exit to Materials (range 6) 4767 | -8/Mines | Entered Materials 4767 | -8/Materials | Evolved 2 slots: Propulsion x1, Utility x1 4908 | -8/Materials | Repaired Lgt. Treads 4936 | -8/Materials | Repaired Lgt. Treads 5223 | -8/Materials | Identified exit to Storage 5223 | -8/Materials | Discovered exit to Storage (range 5) 6224 | -8/Materials | Discovered exit to Storage (range 15) 6309 | -8/Materials | Entered Storage 6703 | -8/Storage | Identified exit to Factory 7021 | -8/Storage | Garrison activated, responded to threat 7271 | -8/Storage | Repaired Arm. Treads 7321 | -8/Storage | Learned location of Armory (-4) 7586 | -8/Storage | Found Prototype Launcher 7586 | -8/Storage | Identified Scatter Rocket Array 7790 | -8/Storage | Repaired Hrd. Medium Armor Plating 7852 | -8/Storage | Repaired Enh. Autogun 8157 | -8/Storage | Entered Factory 8157 | -7/Factory | Evolved 2 slots: Propulsion x1, Utility x1 8262 | -7/Factory | Identified exit to Lower Caves 8262 | -7/Factory | Discovered exit to Lower Caves (range 10) 8372 | -7/Factory | Entered Lower Caves 8470 | -7/Lower Caves | Spotted B-75 Beast 8489 | -7/Lower Caves | Learned Factory stockpile data 8561 | -7/Lower Caves | Ambushed by wild Derelicts 9146 | -7/Lower Caves | Identified exit to Lower Caves 9146 | -7/Lower Caves | Discovered exit to Lower Caves (range 5) 9156 | -7/Lower Caves | Entered another Lower Caves area 9225 | -7/Lower Caves | Attracted the attention of an 0b10 outpost 9403 | -7/Lower Caves | Encountered a Warlord checkpoint 9780 | -7/Lower Caves | Identified exit to Data Miner 9780 | -7/Lower Caves | Discovered exit to Data Miner (range 11) 9799 | -7/Lower Caves | Entered Data Miner 9799 | -7/Data Miner | Identified exit to Proximity Caves 9799 | -7/Data Miner | Discovered exit to Proximity Caves (range 6) 9822 | -7/Data Miner | Met Data Miner 9853 | -7/Data Miner | Learned location of Section 7 (-2) 9853 | -7/Data Miner | Acquired the access code to Warlord's prototype stash 9878 | -7/Data Miner | Received God Mode back door access code from Data Miner 9912 | -7/Data Miner | Entered Proximity Caves 10092 | -6/Proximity Caves | Escorted by Enhanced Grunt 10242 | -6/Proximity Caves | Identified exit to Factory 10242 | -6/Proximity Caves | Discovered exit to Factory (range 10) 10244 | -6/Proximity Caves | Learned Factory terminal intel 10257 | -6/Proximity Caves | Entered Factory 10257 | -6/Factory | Accompanied by 1 ally 10257 | -6/Factory | Evolved 2 slots: Utility x2 10259 | -6/Factory | Loaded intel: 26 terminal locations 10536 | -6/Factory | Identified exit to Factory 10536 | -6/Factory | Discovered exit to Factory (range 12) 10685 | -6/Factory | Entered another Factory area 10685 | -5/Factory | Evolved 2 slots: Utility x1, Weapon x1 10686 | -5/Factory | Identified exit to Extension 11031 | -5/Factory | Build established: Hacker-Gunner 11355 | -5/Factory | Entered Extension 11647 | -5/Extension | Rescued A7 11674 | -5/Extension | Rescued a captive Derelict 11674 | -5/Extension | Rescued a captive Derelict 11830 | -5/Extension | Disrupted transfer network 12127 | -5/Extension | Spotted B-75 Beast 12152 | -5/Extension | Allies destroyed B-75 Beast 12155 | -5/Extension | Spotted B-75 Beast 12202 | -5/Extension | Destroyed B-75 Beast 12302 | -5/Extension | Rescued a captive Derelict 12303 | -5/Extension | Rescued a captive Derelict 12542 | -5/Extension | Rescued a captive Derelict 12543 | -5/Extension | Rescued a captive Derelict 12572 | -5/Extension | Energy Cycler disabled 12573 | -5/Extension | Rescued a captive Derelict 12573 | -5/Extension | Rescued a captive Derelict 12577 | -5/Extension | Rescued a captive Derelict 12651 | -5/Extension | Identified exit to Factory 12651 | -5/Extension | Discovered exit to Factory (range 10) 12652 | -5/Extension | Identified exit to Cetus 12652 | -5/Extension | Discovered exit to Cetus (range 6) 12678 | -5/Extension | Entered Cetus 12678 | -5/Cetus | Accompanied by 6 allies (A7) 12683 | -5/Cetus | Acquired a Cetus Manufacturing Module code from A7 12693 | -5/Cetus | Spotted Cetus Guard 12695 | -5/Cetus | Spotted Cetus Guard 12696 | -5/Cetus | Spotted Cetus Guard 12697 | -5/Cetus | Spotted Cetus Guard 12701 | -5/Cetus | Allies destroyed Cetus Guard 12703 | -5/Cetus | Allies destroyed Cetus Guard 12717 | -5/Cetus | Allies destroyed Cetus Guard 12722 | -5/Cetus | Allies destroyed Cetus Guard 12857 | -5/Cetus | Started Cetus Manufacturing Module 12871 | -5/Cetus | Escorted A7 to Cetus Mainframe 12879 | -5/Cetus | Identified exit to Archives 12879 | -5/Cetus | Discovered exit to Archives (range 22) 12882 | -5/Cetus | Manufactured an Enhanced Grunt 12907 | -5/Cetus | Manufactured an Enhanced Grunt 12916 | -5/Cetus | Spotted Cetus Guard 12916 | -5/Cetus | Spotted Cetus Guard 12920 | -5/Cetus | Spotted Cetus Guard 12920 | -5/Cetus | Spotted Cetus Guard 12921 | -5/Cetus | Destroyed Cetus Guard 12926 | -5/Cetus | Allies destroyed Cetus Guard 12932 | -5/Cetus | Manufactured an Enhanced Grunt 12935 | -5/Cetus | Allies destroyed Cetus Guard 12938 | -5/Cetus | Destroyed Cetus Guard 12943 | -5/Cetus | Discovered exit to Factory (range 22) 12957 | -5/Cetus | Manufactured an Enhanced Grunt 12963 | -5/Cetus | Met Revision 17 12982 | -5/Cetus | Manufactured an Enhanced Grunt 13086 | -5/Cetus | Entered Archives 13086 | -5/Archives | Accompanied by 4 allies 13132 | -5/Archives | Identified exit to Hub_04(d) 13132 | -5/Archives | Discovered exit to Hub_04(d) (range 22) 13140 | -5/Archives | Unable to access archive contents 13148 | -5/Archives | Discovered exit to Hub_04(d) (range 21) 13186 | -5/Archives | Entered Hub_04(d) 13186 | -5/Hub_04(d) | Accompanied by 4 allies 13186 | -5/Hub_04(d) | Discovered exit to Factory (range 21) 14288 | -5/Hub_04(d) | System corruption reached 10% 14288 | -5/Hub_04(d) | Network Hub disabled 14288 | -5/Hub_04(d) | Network Hub disabled 14310 | -5/Hub_04(d) | Spotted Lightning 14316 | -5/Hub_04(d) | Spotted Lightning 14321 | -5/Hub_04(d) | Entered Factory 14321 | -4/Factory | Evolved 2 slots: Utility x2 14493 | -4/Factory | Identified exit to Upper Caves 14493 | -4/Factory | Identified exit to Armory 14518 | -4/Factory | Identified exit to Research 14518 | -4/Factory | Discovered exit to Research (range 10) 14922 | -4/Factory | Repaired Centrium Medium Armor Plating 14977 | -4/Factory | Repaired Centrium Medium Armor Plating 14993 | -4/Factory | Spotted B-86 Titan 15273 | -4/Factory | Entered Upper Caves 15596 | -4/Upper Caves | Identified exit to Upper Caves 15596 | -4/Upper Caves | Discovered exit to Upper Caves (range 13) 15600 | -4/Upper Caves | Encountered a Warlord checkpoint 15625 | -4/Upper Caves | Entered another Upper Caves area 15654 | -4/Upper Caves | Learned Research terminal intel 15785 | -4/Upper Caves | Learned Research stockpile data 15957 | -4/Upper Caves | Spotted B-86 Titan 16141 | -4/Upper Caves | Destroyed B-86 Titan 16548 | -4/Upper Caves | Identified exit to Warlord 16548 | -4/Upper Caves | Discovered exit to Warlord (range 13) 16568 | -4/Upper Caves | Entered Warlord 16741 | -4/Warlord | Met Warlord 16746 | -4/Warlord | Warlord's base attacked by MAIN.C 16756 | -4/Warlord | Opened Warlord's prototype stash 16763 | -4/Warlord | Found Prototype Device 16763 | -4/Warlord | Identified System Purifier 16770 | -4/Warlord | Found Prototype Processor 16770 | -4/Warlord | Identified Exp. Target Analyzer 17036 | -4/Warlord | Warlord forces counterattacked 17087 | -4/Warlord | Spotted Striker 17122 | -4/Warlord | Identified exit to Proximity Caves 17122 | -4/Warlord | Discovered exit to Proximity Caves (range 14) 17141 | -4/Warlord | Entered Proximity Caves 17141 | -3/Proximity Caves | Spotted B-86 Titan 17258 | -3/Proximity Caves | Attracted the attention of an 0b10 checkpoint 17397 | -3/Proximity Caves | Build established: Hacker-Tank 17451 | -3/Proximity Caves | Attracted the attention of an 0b10 outpost 17533 | -3/Proximity Caves | Destroyed 10 combat bots 17565 | -3/Proximity Caves | Discovered exit to Research (range 21) 17597 | -3/Proximity Caves | Entered Research 17597 | -3/Research | Evolved 2 slots: Utility x1, Weapon x1 17599 | -3/Research | Loaded intel: 21 terminal locations 17750 | -3/Research | Identified exit to Quarantine 17797 | -3/Research | Revision forces began assault on 0b10 17894 | -3/Research | Met up with Revision 17++ 18034 | -3/Research | Entered Quarantine 18082 | -3/Quarantine | Repaired Quantum Reactor 18214 | -3/Quarantine | Found Alien Slashing Weapon 18214 | -3/Quarantine | Identified Sigix Broadsword 18291 | -3/Quarantine | Identified exit to Research 18510 | -3/Quarantine | Found Alien Artifact 18510 | -3/Quarantine | Identified Terrabomb 18510 | -3/Quarantine | Used Terrabomb 18541 | -3/Quarantine | Found Terrabomb 18565 | -3/Quarantine | Found Alien Energy Cannon 18617 | -3/Quarantine | Identified Core Cannon 18683 | -3/Quarantine | Found Alien Artifact 18683 | -3/Quarantine | Identified Subatomic Replicator 18821 | -3/Quarantine | Found Alien Reactor 19041 | -3/Quarantine | Found Alien Impact Weapon 19322 | -3/Quarantine | Entered Research 19322 | -2/Research | Warlord forces began assault on 0b10 19322 | -2/Research | Evolved 2 slots: Power x1, Utility x1 19432 | -2/Research | Research machine network offline 19439 | -2/Research | Build established: Scavenger-Tank 19522 | -2/Research | Spotted B-90 Cyclops 19692 | -2/Research | Warlord destroyed during the assault 20158 | -2/Research | Borebot progress halted 20162 | -2/Research | Borebot progress halted 20216 | -2/Research | Borebot progress halted 20267 | -2/Research | Spotted Striker 20355 | -2/Research | Spotted Executioner 20416 | -2/Research | Identified exit to Testing 20416 | -2/Research | Discovered exit to Testing (range 17) 20452 | -2/Research | Discovered exit to Testing (range 10) 20487 | -2/Research | Entered Testing 20498 | -2/Testing | Identified exit to Access 20610 | -2/Testing | Incoming investigation squad redirected 21150 | -2/Testing | Scanned by Researcher 21157 | -2/Testing | Spotted Fortress 21322 | -2/Testing | Destroyed Fortress 21331 | -2/Testing | Found Prototype Protection 21331 | -2/Testing | Identified Centrium Heavy Armor Plating 21460 | -2/Testing | Build established: Hacker-Mutant 21470 | -2/Testing | Identified exit to Section 7 21470 | -2/Testing | Discovered exit to Section 7 (range 6) 21477 | -2/Testing | Entered Section 7 21982 | -2/Section 7 | Build established: Scavenger-Tank 22154 | -2/Section 7 | Found Alien Artifact 22154 | -2/Section 7 | Identified Integrated Dissipator 22154 | -2/Section 7 | Installed Integrated Dissipator, increased core heat dissipation (+20) 22197 | -2/Section 7 | Found Prototype Device 22268 | -2/Section 7 | Entered Access 22268 | -1/Access | Evolved 2 slots: Utility x2 22396 | -1/Access | Destroyed 7 combat bots 22495 | -1/Access | Identified Exp. Actuator Array 22518 | -1/Access | First assault squad dispatched 22534 | -1/Access | Incoming assault squad redirected 23060 | -1/Access | Build established: Scavenger-Gunner 23656 | -1/Access | Found Prototype Slashing Weapon 23658 | -1/Access | Identified Molecular Scythe 23666 | -1/Access | Lost 9 parts (2p1n5u1w) 23672 | -1/Access | Found Prototype Slashing Weapon 23672 | -1/Access | Identified Centrium Greatsword 23687 | -1/Access | Found Centrium Greatsword 23706 | -1/Access | Found Quantum Capacitor 23960 | -1/Access | Spotted B-99 Colossus 24046 | -1/Access | Build established: Scavenger-Mutant 24357 | -1/Access | Spotted B-99 Colossus 24458 | -1/Access | Identified Matter Drive 24463 | -1/Access | Crushed by falling debris 24475 | -1/Access | Crushed by falling debris 24502 | -1/Access | Crushed by falling debris 24533 | -1/Access | Lost 4 parts (4u) 24556 | -1/Access | Identified exit to Command 24556 | -1/Access | Discovered exit to Command (range 8) 24567 | -1/Access | Entered Command 24866 | -1/Command | Used Subatomic Replicator to replicate Sigix Broadsword 24939 | -1/Command | Spotted B-99 Colossus 25068 | -1/Command | Destroyed B-99 Colossus 25117 | -1/Command | Found Imp. Powered Armor 25729 | -1/Command | Crushed by falling debris 25760 | -1/Command | Lost 3 parts (3u) 25769 | -1/Command | Met MAIN.C 25793 | -1/Command | 0b10 Conduit disabled 25797 | -1/Command | Destroyed MAIN.C Shell 25800 | -1/Command | MAIN.C activated Command garrisons 25800 | -1/Command | Surrendered to MAIN.C 25800 | -1/Command | Loaded intel: 53 machine locations 25800 | -1/Command | Loaded intel: 114 trap records 25800 | -1/Command | Identified exit to Surface 25800 | -1/Command | Discovered exit to Surface (range 34) 25800 | -1/Command | Discovered exit to Surface (range 95) 25999 | -1/Command | Found Prototype Energy Cannon 26001 | -1/Command | Identified Null Cannon 26007 | -1/Command | Found Prototype Reactor 26007 | -1/Command | Identified Zero-point Reactor 26011 | -1/Command | Found Zero-point Reactor 26015 | -1/Command | Found Centrium Heavy Armor Plating 26020 | -1/Command | Found Exp. Target Analyzer 26023 | -1/Command | Found Prototype Device 26023 | -1/Command | Identified Exp. Force Field 26027 | -1/Command | Found Prototype Protection 26027 | -1/Command | Identified Hvy. Regenerative Plating 26032 | -1/Command | Found Prototype Device 26032 | -1/Command | Identified Adv. Kinecellerator 26035 | -1/Command | Found Prototype Device 26035 | -1/Command | Identified Exp. System Purifier 26060 | -1/Command | MAIN.C activated Command garrisons 26096 | -1/Command | Unknown forces attacked Command 26096 | -1/Command | Spotted EQ-002 26121 | -1/Command | Spotted EQ-010 26122 | -1/Command | Spotted EQ-009 26135 | -1/Command | Destroyed EQ-010 26148 | -1/Command | Destroyed EQ-009 26158 | -1/Command | Spotted EQ-017 26194 | -1/Command | Spotted EQ-018 26215 | -1/Command | Destroyed EQ-017 26233 | -1/Command | Destroyed EQ-018 26283 | -1/Command | Spotted EQ-035 26286 | -1/Command | Spotted EQ-001 26290 | -1/Command | Spotted EQ-032 26298 | -1/Command | Destroyed EQ-035 26301 | -1/Command | Spotted EQ-038 26311 | -1/Command | Spotted EQ-049 26313 | -1/Command | Core integrity fell below 50% 26313 | -1/Command | Spotted EQ-048 26322 | -1/Command | Destroyed EQ-001 26369 | -1/Command | Destroyed EQ-038 26375 | -1/Command | Destroyed EQ-049 26380 | -1/Command | Destroyed EQ-032 26386 | -1/Command | Destroyed EQ-048 26395 | -1/Command | Found Prototype Device 26401 | -1/Command | Spotted EQ-083 26403 | -1/Command | Spotted EQ-078 26408 | -1/Command | Destroyed EQ-083 26420 | -1/Command | Destroyed EQ-078 26434 | -1/Command | Spotted EQ-075 26444 | -1/Command | Spotted EQ-073 26445 | -1/Command | All MAIN.C guards destroyed 26453 | -1/Command | Identified Core Stripper 26454 | -1/Command | Destroyed EQ-073 26454 | -1/Command | Spotted EQ-056 26467 | -1/Command | Spotted EQ-070 26471 | -1/Command | Spotted EQ-079 26479 | -1/Command | Spotted EQ-074 26484 | -1/Command | Spotted EQ-061 26500 | -1/Command | Core integrity fell below 20% 26511 | -1/Command | Spotted EQ-089 26511 | -1/Command | Spotted EQ-096 26511 | -1/Command | Identified Adv. EM Disruption Field 26513 | -1/Command | Spotted EQ-099 26524 | -1/Command | Destroyed by EQ-074 with Graviton Cannon Last Messages --------------- 26513_ EQ-079 suffers critical hit (Destroy). 26513_ Penetrated by Slug. 26513_ Slug penetrates Reinforced Barrier. 26515_ Acquired 29 matter. 26516_ Penetrated by Slug. 26516_ Slug penetrates EQ-074. 26516_ Adv. EM Disruption Field destroyed. 26516_ Biometal Heavy Treads destroyed. 26516_ Zero-point Reactor destroyed. 26516_ EQ-070 destroyed. 26517_ Dropped Hcp. Storage Unit. 26517_ Dropped Com. HERF Cannon. 26518_ Dropped Energy Well. 26518_ Dropped Matter Compressor. 26519_ The unstable cave ceiling collapses. 26519_ Penetrated by Slug. 26519_ Chain reaction triggered in Corrupted Lgt. Particle Reactor. 26520_ The unstable cave ceiling collapses. 26520_ Penetrated by Slug. 26520_ Slug penetrates Earth. Map ----- +----------------------------------------------------+ | # + #######???###### #?#???????????????? | | # # #??????????????# #?#?############### | | + # #??????????????#] #?#?#"""""" $ | | ###+## #??????????????##+"###?#?#"" %[% | | ##### #??????????????# #?#?#""""" % | | #??????????????# #?#?# """ % | | ########/######??????????# !#?#?# | | ????# #??????????# #?#?# | | ????# #??????????# % #?#?# | | ##### "" #??????????# % #?#?# | | # + """" #?????????## ###?# % | | # ### """" ######???## #### | | # #?# "" # ## ##### # " % | | # #?# ## ###?# % % | | # #?# # ## # #?# % %! | | #"######+ ## # # #?# % %% | | ###" # # # # # ##### | | + % Q Q![ | | ###### % ## *% / % " " | | # ?# # # " | | ### # # % #### " % "" | | / % ## =# # #?% " % " | | # # # # #?#%%% " % " " | | # # ### # # #?###"###"####### | | # ###?### #????##??##?????? | | % % % "#???## @ ################# | | % %* ######### ##???????????????? | | !]%% #?# ##% # #????????????????? | | # =%"! #?# < ## ###????????????????? | | ##%="% ^ ### ## #??????????????????? | | ?# * % ^ " ### #; ! #??????????????????? | | ?## ! % " ## ## #??????????????????? | | ??# % % %% # ##########??????????????????? | | ??# # ""### # #?????????????????????????? | | #?# % "#??????????????????????????? | | #### % ##??????????????????????????? | | %%% % #???????????????????????????? | | %% % ""###+#########????????????????????? | | "##"" ##"##"%#" #????????????????????? | | #?##" ##### ### #????????????????????? | | #####"#???###?# #????????????????????? | | #???????# #????????????????????? | | = #???????# #????????????????????? | | ######??# #????????????????????? | | # ###### ####################?????????? | | + ] #?????????? | | # T#?????????? | | # ######## # ######### ##?????????? | | ## ######### # #????#### ##?????????? | | ########+### """" #????#]]] =#?????????? | +----------------------------------------------------+ Best States ------------- Heat Dissipation 134 Coolant Potential 80 Energy Generation 61 Energy Capacity 980 Matter Stores 348 Matter Capacity 550 Sight Range 23 Robot Scan Range 16 Terrain Scan Density 10 Jamming Range 16 Cloak Strength 2 Power Amplification 30 EM Shielding 8 Corruption Block 41 Armor Coverage 1200 Resistance: KI 60 Resistance: TH 65 Resistance: EX 85 Resistance: EM 60 Resistance: I 35 Resistance: S 35 Resistance: P 35 Core Shielding 30 Weapon Shielding 90 Phase Shifting 15 Evasion (%) 55 Targeting Accuracy 8 Target Analysis 14 Core Analysis 6 Armor Integrity Analysis 40 Recoil Reduction 10 Kinecelleration 40 Offensive Hacking 32 Defensive Hacking 14 Item Schematics ----------------- Enh. Autogun | -8/Materials | Scanalyzed Lgt. Treads | -8/Materials | Scanalyzed Hacking Suite | -8/Materials | Scanalyzed Combat Drone Bay | -7/Data Miner | Free Lgt. Regenerative Plating | -7/Data Miner | Free Cld. Cesium-ion Thruster | -7/Data Miner | Free Exp. Targeting Computer | -7/Data Miner | Free Scatter Rocket Array | -7/Data Miner | Free Cmb. Gravmag System | -7/Data Miner | Free Mass Driver | -7/Data Miner | Free Point Defense System | -7/Data Miner | Free Imp. Shock Absorption System | -7/Data Miner | Free Linear Gravjet | -7/Data Miner | Free Antimatter Reactor | -7/Data Miner | Free Biometal Heavy Treads | -2/Testing | Hacked Thermal Barrier | -2/Testing | Archive Robot Schematics ------------------ Y-45 Defender | -8/Storage | Hacked B-48 Gladiator | -7/Data Miner | Free G-50 Soldier | -7/Data Miner | Free O-24 Administrator | -7/Data Miner | Free G-47 Trooper | -7/Data Miner | Free Y-54 Guardian | -7/Data Miner | Free I-47 Archangel | -7/Data Miner | Free H-66 Slayer | -7/Data Miner | Free C-65 Expert | -2/Testing | Archive Fabricated ------------ Nothing Alien Tech Used ----------------- Sigix Broadsword Terrabomb Subatomic Replicator Integrated Dissipator Matter Drive Core Cannon Core Stripper Achievements -------------- Sunderer Challenges ------------ None Game ------ Seed GammaHeatBoosters Manual? 0 Play Time 03:37:49 Cumulative 185.5 hours Start 2022.03.22 @ 16:46:40 End 2022.03.22 @ 20:24:09 Sessions 1 Manual Loads 0 Difficulty Explorer Special Mode None Game No. 172 Rogue 163 Adventurer 2 Explorer 7 Win Type - Total 25 Types 12/1/2/8/1/0/0/1/0 Lore% 62 Gallery% 77 Achievement% 66 Wizard Run 0 Options --------- ASCII 0 Keyboard 0 Movement Mouse Keybinds 0 Fullscreen 2 Font 24/Smallcaps Map View 76x50 Tactical HUD 1 Map Filters NONE Filters NONE Steam 1 RUN: d0fc4fcc-ba98-49b3-a677-42d434605530